bitfinex-derivatives/quotes_ETHF0:USTF0_20250502
["timestamp","ask_amount","ask_price","bid_price","bid_amount"]
[1746206588604,10.14412146,1850.6,1850.5,40.8]
[1746206588804,1.0803,1850.5,1850.4,1.08034]
[1746206589004,1.08036,1850.4,1850.3,2.77227]
[1746206589202,3.696,1850.4,1850.3,2.77227]
[1746206589400,3.696,1850.4,1850.3,43.57227]
[1746206589801,5.20974146,1850.4,1850.3,43.57227]
[1746206590906,5.20974146,1850.4,1850.3,43.57231]
[1746206591503,6.82474146,1850.4,1850.3,43.57231]
[1746206591699,6.82474146,1850.4,1850.3,42.4919]
[1746206592193,10.03254146,1850.4,1850.3,43.57231]
[1746206592599,7.33718146,1850.4,1850.3,43.57231]
[1746206592801,4.12938146,1850.4,1850.3,43.57231]
[1746206596214,4.12980205,1850.4,1850.3,52.21431]
[1746206596421,3.2078,1850.8,1850.7,1.08018]
[1746206596711,1.08024,1850.6,1850.5,3.2078]
[1746206596917,1.0803,1850.5,1850.4,1.7449]
[1746206597419,1.0803,1850.5,1850.4,2.82526]
[1746206597721,2.6623,1850.5,1850.4,2.82526]
[1746206598216,6.3583,1850.5,1850.4,2.82526]
[1746206601216,5.278,1850.5,1850.4,2.82526]
[1746206601606,6.3583,1850.5,1850.4,2.82526]
[1746206603016,1.08036,1850.4,1850.3,41.88039]
[1746206603210,1.08041,1850.3,1850.2,1.7042]
[1746206603415,1.08047,1850.2,1850.1,1.87053]
[1746206603615,1.08047,1850.2,1850.1,0.79]
[1746206603822,1.08047,1850.2,1850.1,1.87053]
[1746206604022,1.08053,1850.1,1850.0,42.5042]
[1746206604215,3.57533,1850.1,1850.0,43.58476]
[1746206604922,3.57533,1850.1,1850.0,41.88056]
[1746206605220,8.89214,1850.1,1849.8,7.15556595]
[1746206605416,1.08065,1849.9,1849.8,9.92342595]
[1746206605613,1.08065,1849.9,1849.8,50.72342595]
[1746206605813,2.74175,1849.9,1849.8,50.72342595]
[1746206606319,6.43775,1849.9,1849.8,49.03622595]
[1746206607211,1.08071,1849.8,1849.7,11.83507892]
[1746206607416,1.08071,1849.8,1849.7,14.37327892]
[1746206607616,3.56671,1849.8,1849.7,55.17327892]
[1746206608123,7.26271,1849.8,1849.7,55.17327892]
[1746206608525,7.69218324,1849.8,1849.7,55.17327892]
[1746206608726,7.69218324,1849.8,1849.7,51.55432892]
[1746206609023,10.89998324,1849.8,1849.7,10.73334892]
[1746206609418,1.08082,1849.6,1849.5,1.08086]
[1746206609613,1.08088,1849.5,1849.4,4.28869]
[1746206609819,3.56688,1849.5,1849.4,4.28869]
[1746206610019,3.99635324,1849.5,1849.4,40.8]
[1746206610229,7.69235324,1849.5,1849.4,40.8]
[1746206610623,6.61147324,1849.5,1849.2,2.75571]
[1746206610923,1.081,1849.3,1849.2,1.6747]
[1746206611124,1.08106,1849.2,1849.1,10.73334892]
[1746206611320,3.67306,1849.2,1849.1,10.73334892]
[1746206611514,7.75206,1849.2,1849.1,10.73334892]
[1746206611715,8.18153324,1849.2,1849.1,10.73334892]
[1746206612129,11.87753324,1849.2,1849.1,10.73334892]
[1746206612330,11.87753324,1849.2,1849.1,11.58614892]
[1746206612826,11.87753324,1849.2,1849.1,10.73334892]
[1746206614031,11.87753324,1849.2,1849.1,51.53334892]
[1746206614226,11.87753324,1849.2,1849.1,40.8]
[1746206615328,1.08117,1849.0,1848.9,1.08122]
[1746206615531,1.51064324,1849.0,1848.9,1.08122]
[1746206615729,1.51064324,1849.0,1848.9,41.88122]
[1746206616031,1.51064324,1849.0,1848.9,40.8]
[1746206616233,5.20664324,1849.0,1848.9,40.8]
[1746206617431,1.08123,1848.9,1848.8,2.73144]
[1746206617631,2.73023,1848.9,1848.8,2.73144]
[1746206617834,2.73023,1848.9,1848.8,43.53144]
[1746206617835,3.53703,1848.9,1848.8,43.53144]
[1746206618134,4.77723,1848.9,1848.8,40.8]
[1746206618336,6.42623,1848.9,1848.8,41.88129]
[1746206619129,6.42623,1848.9,1848.8,40.8]
[1746206619335,6.42623,1848.9,1848.8,41.88129]
[1746206619637,6.42623,1848.9,1848.8,40.8]
[1746206620135,6.42623,1848.9,1848.8,41.88129]
[1746206620529,6.84585722,1848.9,1848.8,41.88129]
[1746206620730,6.84585722,1848.9,1848.8,40.8]
[1746206622039,6.42623,1848.9,1848.8,40.8]
[1746206622537,1.08129,1848.8,1848.7,2.611]
[1746206622838,4.77728,1848.9,1848.8,1.08129]
[1746206623039,4.77728,1848.9,1848.8,2.81309]
[1746206624740,3.696,1848.9,1848.8,2.81309]
[1746206624940,4.77723,1848.9,1848.8,2.81309]
[1746206625242,3.696,1848.9,1848.8,2.81309]
[1746206626536,3.696,1848.9,1848.8,14.66589]
[1746206627239,3.696,1848.9,1848.8,55.46589]
[1746206627636,3.696,1848.9,1848.8,50.46589]
[1746206629745,3.696,1848.9,1848.8,55.46589]
[1746206630339,3.696,1848.9,1848.8,50.46589]
[1746206633948,4.11738256,1848.9,1848.8,50.46589]
[1746206636550,3.696,1848.9,1848.8,50.46589]
[1746206636856,4.11817928,1848.9,1848.8,50.46589]
[1746206637146,0.22046824,1848.9,1848.8,55.46589]
[1746206637344,1.08093,1849.5,1849.4,1.08088]
[1746206637539,2.71823,1849.5,1849.4,1.08088]
[1746206637747,2.71823,1849.5,1849.3,1.08094]
[1746206637748,1.08099,1849.4,1849.3,1.08094]
[1746206637951,3.56409,1849.4,1849.3,41.88094]
[1746206638153,7.26009,1849.4,1849.3,41.88094]
[1746206640556,6.1791,1849.4,1849.3,41.88094]
[1746206640851,7.26004,1849.4,1849.3,41.88094]
[1746206641153,7.26004,1849.4,1849.3,1.08094]
[1746206641545,1.081,1849.3,1849.2,2.7736]
[1746206641741,2.6632,1849.3,1849.2,1.081]
[1746206642146,6.3592,1849.3,1849.2,41.881]
[1746206644759,3.696,1849.3,1849.2,41.881]
[1746206645557,3.696,1849.3,1849.2,45.0888]
[1746206646548,3.696,1849.3,1849.2,41.881]
[1746206648257,3.696,1849.3,1849.2,45.0888]
[1746206649251,4.11443403,1849.3,1849.2,45.0888]
[1746206652357,5.19543403,1849.3,1849.2,45.0888]
[1746206652955,4.11443403,1849.3,1849.2,45.0888]
[1746206653149,5.19543403,1849.3,1849.2,45.0888]
[1746206653347,5.86033403,1849.3,1849.2,45.0888]
[1746206653655,6.94133403,1849.3,1849.2,45.0888]
[1746206655359,6.94133403,1849.3,1849.2,41.881]
[1746206656359,6.94133403,1849.3,1849.2,40.8]
[1746206656558,6.94133403,1849.3,1849.2,41.88106]
[1746206657052,6.94133403,1849.3,1849.2,1.08106]
[1746206661862,5.86033403,1849.3,1849.2,1.08106]
[1746206662063,4.11443403,1849.3,1849.2,2.75156]
[1746206662255,5.19543403,1849.3,1849.2,2.75156]
[1746206667363,5.19543403,1849.3,1849.2,1.08106]
[1746206667570,1.08106,1849.2,1849.1,40.8]
[1746206667763,1.08123,1849.0,1848.9,1.08119]
[1746206668265,6.79176403,1849.0,1848.9,41.88119]
[1746206668664,5.71053403,1849.0,1848.9,41.88119]
[1746206668967,4.11443403,1849.0,1848.9,43.55489]
[1746206669167,4.11443403,1849.0,1848.9,44.42409]
[1746206670168,4.11443403,1849.0,1848.9,47.63189]
[1746206671164,4.11443403,1849.0,1848.9,51.24689]
[1746206671664,4.11443403,1849.0,1848.9,48.03909]
[1746206672266,6.69723403,1849.0,1848.9,47.16989]
[1746206672465,7.77840403,1849.0,1848.9,47.16989]
[1746206672662,7.77840403,1849.0,1848.9,40.8]
[1746206673060,7.77840403,1849.0,1848.9,41.88123]
[1746206673262,7.77840403,1849.0,1848.9,40.8]
[1746206674470,1.08129,1848.8,1848.7,2.8194]
[1746206674967,1.49972403,1848.8,1848.7,41.8813]
[1746206675268,6.04992403,1848.8,1848.7,41.88135]
[1746206676867,6.04992403,1848.8,1848.7,1.08135]
[1746206677165,1.08135,1848.7,1848.6,3.51456]
[1746206677360,3.56125,1848.7,1848.6,3.51456]
[1746206677566,3.97968403,1848.7,1848.6,1.08141]
[1746206677970,1.08141,1848.6,1848.5,45.08922]
[1746206678168,6.87594403,1848.6,1848.5,45.08922]
[1746206678364,6.87594403,1848.6,1848.5,44.0078]
[1746206678565,6.87594403,1848.6,1848.5,41.88147]
[1746206679169,6.87594403,1848.6,1848.5,40.8]
[1746206679464,6.87594403,1848.6,1848.5,41.88147]
[1746206679866,6.87594403,1848.6,1848.5,43.49017]
[1746206680173,4.11443403,1848.6,1848.5,43.49017]
[1746206681672,5.19584403,1848.6,1848.5,43.49017]
[1746206682365,6.79964403,1848.6,1848.5,43.49017]
[1746206683283,5.71823403,1848.6,1848.5,43.49017]
[1746206683673,6.79964403,1848.6,1848.5,43.49017]
[1746206683873,5.71823403,1848.6,1848.5,43.49017]
[1746206686682,4.11443403,1848.6,1848.5,43.49017]
[1746206687775,4.11443403,1848.6,1848.5,47.10617]
[1746206688374,4.11443403,1848.6,1848.5,50.31397]
[1746206701395,1.08108,1849.2,1849.1,1.08106]
[1746206701589,3.67378,1849.2,1849.1,1.08106]
[1746206701992,2.5927,1849.2,1849.1,1.08106]
[1746206702193,6.2887,1849.2,1849.1,1.08106]
[1746206702395,6.2887,1849.2,1849.1,2.72586]
[1746206702898,7.36976,1849.2,1849.1,2.72586]
[1746206705199,1.08112,1849.1,1849.0,5.10763]
[1746206705497,2.75212,1849.1,1849.0,5.10763]
[1746206705901,2.75212,1849.1,1849.0,4.28893]
[1746206706199,6.44812,1849.1,1849.0,1.08113]
[1746206708905,1.08123,1849.0,1848.9,1.08121]
[1746206709104,3.49363,1849.0,1848.9,1.08121]
[1746206710100,7.18963,1849.0,1848.9,1.08121]
[1746206710500,1.08123,1848.9,1848.8,4.28905]
[1746206710701,2.4069,1848.9,1848.5,40.8]
[1746206710907,1.08141,1848.6,1848.5,41.88142]
[1746206711110,4.2892,1848.7,1848.6,1.08141]
[1746206712109,4.7774,1848.7,1848.6,1.08141]
[1746206713310,1.08141,1848.6,1848.5,41.88141]
[1746206713511,1.08141,1848.6,1848.5,40.8]
[1746206713512,2.72331,1848.6,1848.5,40.8]
[1746206713712,1.08147,1848.5,1848.4,1.08148]
[1746206714011,3.1422856,1848.5,1848.4,1.08148]
[1746206714211,3.1422856,1848.5,1848.4,41.88148]
[1746206714511,2.0608156,1848.5,1848.4,41.88148]
[1746206714711,3.1422856,1848.5,1848.4,41.88148]
[1746206715112,5.7568156,1848.5,1848.4,41.88148]
[1746206715304,5.7568156,1848.5,1848.4,43.55288]
[1746206715706,4.1149156,1848.5,1848.4,43.55288]
[1746206716006,4.1149156,1848.5,1848.4,41.88148]
[1746206716504,4.1149156,1848.5,1848.4,43.55288]
[1746206718022,4.1149156,1848.5,1848.4,48.55288]
[1746206718211,0.4189156,1848.5,1848.4,48.55288]
[1746206718415,5.20416604,1848.8,1848.7,1.08135]
[1746206718617,3.55156604,1848.8,1848.7,1.08135]
[1746206718814,3.55156604,1848.8,1848.7,6.08135]
[1746206719121,3.55156604,1848.8,1848.7,48.59255]
[1746206719317,5.34425619,1848.9,1848.8,1.08129]
[1746206719505,5.34425619,1848.9,1848.8,6.00029]
[1746206719910,5.34425619,1848.9,1848.8,46.80029]
[1746206720311,3.696,1848.9,1848.8,46.80029]
[1746206725322,3.696,1848.9,1848.8,50.41429]
[1746206728225,1.729,1849.0,1848.9,1.08123]
[1746206728422,1.729,1849.0,1848.9,3.51863]
[1746206728619,1.729,1849.0,1848.5,10.73334892]
[1746206728620,2.70309,1848.9,1848.5,10.73334892]
[1746206728921,1.08141,1848.6,1848.5,10.73334892]
[1746206729125,4.77741,1848.6,1848.5,10.73334892]
[1746206729318,11.52311,1848.6,1848.5,10.73334892]
[1746206730320,15.13311,1848.6,1848.5,3.75286451]
[1746206731617,15.13311,1848.6,1848.5,1.49529451]
[1746206732112,20.95311,1848.6,1848.5,4.51e-06]
[1746206732318,1.08152,1848.4,1848.3,13.2159719]
[1746206732624,4.38832,1848.4,1848.3,13.2159719]
[1746206732824,9.38832,1848.4,1848.3,13.2159719]
[1746206733120,14.82582,1848.4,1848.3,13.2159719]
[1746206733525,15.63882,1848.4,1848.3,13.2159719]
[1746206734523,17.26119,1848.4,1847.7,0.8208]
[1746206734729,1.08188,1847.8,1847.7,1.90271]
[1746206734914,3.2078,1848.0,1847.6,1.7244]
[1746206735120,1.08201,1847.6,1847.5,1.08199]
[1746206735321,2.82347,1847.7,1847.6,1.08199]
[1746206735514,1.08201,1847.6,1847.5,1.08201]
[1746206735714,2.79651,1847.6,1847.5,1.08201]
[1746206736127,6.49251,1847.6,1847.5,1.08201]
[1746206737618,6.49251,1847.6,1847.5,2.71601]
[1746206738326,6.49251,1847.6,1847.4,8.05447034]
[1746206738327,1.08205,1847.5,1847.4,7.21497034]
[1746206738527,3.62205,1847.5,1847.4,7.21497034]
[1746206739123,7.31805,1847.5,1847.4,8.29708034]
[1746206739319,7.31805,1847.5,1847.4,1.08211]
[1746206739320,5.4073,1847.5,1847.4,1.08211]
[1746206740126,5.4073,1847.5,1847.4,2.67841]
[1746206740327,3.696,1847.5,1847.4,2.67841]
[1746206741128,4.38881,1847.6,1847.5,1.08205]
[1746206741322,6.10011,1847.6,1847.5,2.67835]
[1746206741524,5.0181,1847.6,1847.5,2.67835]
[1746206741825,6.10009,1847.6,1847.5,2.67835]
[1746206742130,9.79609,1847.6,1847.5,2.67835]
[1746206743130,8.7141,1847.6,1847.5,2.67835]
[1746206744126,5.0181,1847.6,1847.5,2.67835]
[1746206744730,1.8103,1847.6,1847.5,2.67835]
[1746206745130,2.89229,1847.6,1847.5,2.67835]
[1746206745724,1.8103,1847.6,1847.5,2.67835]
[1746206745930,0.099,1847.6,1847.5,2.67835]
[1746206746128,3.795,1847.6,1847.5,2.67835]
[1746206754441,4.28956,1848.0,1847.9,1.08182]
[1746206755238,6.9038,1848.0,1847.9,1.08182]
[1746206755440,6.9038,1848.0,1847.9,2.80622]
[1746206756033,7.98556,1848.0,1847.9,2.80622]
[1746206757651,6.9038,1848.0,1847.9,2.80622]
[1746206757845,7.98556,1848.0,1847.9,2.80622]
[1746206759049,1.08182,1847.9,1847.8,1.97912]
[1746206759238,2.75502,1847.9,1847.8,1.08182]
[1746206759439,3.57272,1847.9,1847.8,1.08182]
[1746206759642,1.08188,1847.8,1847.7,1.6735]
[1746206759843,2.72448,1847.8,1847.7,2.75543]
[1746206760042,2.71981696,1847.8,1847.7,2.75543]
[1746206760237,6.41581696,1847.8,1847.7,2.75543]
[1746206762849,6.41581696,1847.8,1847.7,1.08193]
[1746206767751,1.08193,1847.7,1847.6,1.94327]
[1746206768048,2.65993,1847.7,1847.6,1.94327]
[1746206769355,6.35593,1847.7,1847.6,1.94327]
[1746206769756,9.56373,1847.7,1847.6,1.94327]
[1746206771558,9.56373,1847.7,1847.6,1.94329]
[1746206773158,9.56373,1847.7,1847.6,0.8613]
[1746206773663,9.56373,1847.7,1847.6,1.94329]
[1746206773864,1.08205,1847.5,1847.4,1.92748]
[1746206774164,1.08205,1847.5,1847.4,1.08208]
[1746206774656,2.69225,1847.5,1847.4,1.08208]
[1746206775164,2.69225,1847.5,1847.3,2.435]
[1746206775165,1.08217,1847.4,1847.3,1.08211]
[1746206775458,2.74537,1847.4,1847.3,1.08211]
[1746206775761,2.74537,1847.4,1847.3,1.7112]
[1746206776063,1.08217,1847.3,1847.2,2.79167]
[1746206776263,3.61197,1847.3,1847.2,2.79167]
[1746206776464,1.08223,1847.2,1847.1,41.88226]
[1746206776666,1.94882,1847.3,1847.2,1.08223]
[1746206776868,1.94882,1847.3,1847.2,2.79343]
[1746206777668,3.2078,1847.4,1847.3,1.08217]
[1746206777866,4.28991,1847.4,1847.3,2.79337]
[1746206778066,7.98591,1847.4,1847.3,2.79337]
[1746206778569,6.9038,1847.4,1847.3,2.79337]
[1746206779169,3.2078,1847.4,1847.3,2.79337]
[1746206779558,4.7781,1847.5,1847.4,1.08211]
[1746206779758,4.7781,1847.5,1847.4,3.56991]
[1746206780170,5.15644,1847.6,1847.5,1.08205]
[1746206780370,5.15644,1847.6,1847.5,3.62455]
[1746206780770,5.15644,1847.6,1847.5,1.96225]
[1746206781269,8.85244,1847.6,1847.5,1.96225]
[1746206781859,14.19669619,1847.6,1847.5,1.96225]
[1746206783469,15.81970619,1847.6,1847.1,46.71339]
[1746206783775,1.08221,1847.3,1847.2,3.65495]
[1746206785067,4.77821,1847.3,1847.2,3.65495]
[1746206786972,3.696,1847.3,1847.2,3.65495]
[1746206787174,1.08215,1847.4,1847.3,1.08217]
[1746206787361,1.08215,1847.4,1847.3,2.74037]
[1746206787565,4.28995,1847.4,1847.3,2.74037]
[1746206788268,6.36105,1847.4,1847.3,2.74037]
[1746206790576,9.56885,1847.4,1847.3,2.74037]
[1746206790882,3.696,1847.4,1847.3,2.74037]
[1746206791977,4.77811,1847.4,1847.3,2.74037]
[1746206792178,2.7149,1847.5,1847.4,1.08211]
[1746206792371,1.08205,1847.5,1847.4,3.59581]
[1746206793279,4.28985,1847.6,1847.5,1.08205]
[1746206793576,5.87565,1847.6,1847.5,3.69245]
[1746206794078,9.57165,1847.6,1847.5,3.69245]
[1746206796179,9.57165,1847.6,1847.5,0.8885]
[1746206796775,9.57165,1847.6,1847.5,1.97055]
[1746206797679,1.08205,1847.5,1847.4,2.74637]
[1746206797980,3.69415,1847.5,1847.4,1.08207]
[1746206798183,7.39015,1847.5,1847.4,1.08207]
[1746206798381,1.08211,1847.4,1847.3,2.86363]
[1746206798580,2.81141,1847.4,1847.3,4.52793]
[1746206799185,6.50741,1847.4,1847.3,4.52793]
[1746206804783,6.50752,1847.4,1847.3,4.52793]
[1746206805085,9.71532,1847.4,1847.3,0.8789]
[1746206805285,9.71532,1847.4,1847.3,1.96118]
[1746206808587,8.6331,1847.4,1847.3,1.96118]
[1746206808788,3.696,1847.4,1847.3,1.96118]
[1746206809285,4.8252,1847.6,1847.5,1.08216]
[1746206809776,3.2078,1847.6,1847.5,1.08216]
[1746206809982,8.89566284,1847.7,1847.6,1.0821]
[1746206810187,12.59166284,1847.7,1847.6,1.9525]
[1746206810387,12.59166284,1847.7,1847.6,8.6369]
[1746206811187,8.89566284,1847.7,1847.6,8.6369]
[1746206813392,8.89566284,1847.7,1847.6,6.8447]
[1746206813986,2.6247,1848.1,1848.0,1.08187]
[1746206814186,6.3207,1848.1,1848.0,1.08187]
[1746206814388,7.40251,1848.1,1848.0,1.08187]
[1746206814588,7.40251,1848.1,1848.0,1.94407]
[1746206814886,6.3207,1848.1,1848.0,1.94407]
[1746206815197,5.4447,1848.1,1848.0,1.94407]
[1746206815395,5.4447,1848.1,1848.0,2.81767]
[1746206815597,6.52651,1848.1,1848.0,2.81767]
[1746206816297,5.4447,1848.1,1848.0,2.81767]
[1746206816493,6.52651,1848.1,1848.0,2.81767]
[1746206817897,5.4447,1848.1,1848.0,2.81767]
[1746206819995,3.696,1848.1,1848.0,2.81767]
[1746206820298,3.696,1848.1,1848.0,6.42067]
[1746206821602,3.696,1848.1,1848.0,47.22067]
[1746206824095,3.696,1848.1,1848.0,50.42847]
[1746206824894,5.37531775,1848.4,1848.0,50.42847]
[1746206825086,5.37531775,1848.4,1848.3,1.08169]
[1746206825295,3.2078,1848.6,1848.5,1.08157]
[1746206825493,5.37531775,1848.7,1848.6,1.08152]
[1746206826094,9.07131775,1848.7,1848.6,1.08152]
[1746206827499,9.07131775,1848.7,1848.6,4.68352]
[1746206828299,10.71031775,1848.7,1848.6,4.68352]
[1746206830695,9.07131775,1848.7,1848.6,4.68352]
[1746206830897,3.696,1848.7,1848.6,4.68352]
[1746206831398,3.696,1848.7,1848.6,7.89132]
[1746206832101,1.6323,1849.1,1849.0,1.08128]
[1746206833100,8.5361,1849.1,1849.0,1.08128]
[1746206833692,1.08128,1849.0,1848.9,1.902]
[1746206834001,2.70198,1849.0,1848.9,1.0813]
[1746206834196,6.39798,1849.0,1848.9,1.0813]
[1746206834404,5.3167,1849.0,1848.9,41.8813]
[1746206835495,6.39798,1849.0,1848.9,41.8813]
[1746206835700,5.3167,1849.0,1848.9,41.8813]
[1746206835901,6.39798,1849.0,1848.9,41.8813]
[1746206836495,6.39798,1849.0,1848.9,40.8]
[1746206836694,13.01998,1849.0,1848.6,4.34117]
[1746206836897,13.01998,1849.0,1848.8,1.08134]
[1746206836898,7.61258,1848.9,1848.8,1.08134]
[1746206837089,11.30858,1848.9,1848.8,1.08134]
[1746206838202,10.2272,1848.9,1848.8,1.08134]
[1746206838409,9.3866,1848.9,1848.8,1.08134]
[1746206838705,6.1788,1848.9,1848.8,1.08134]
[1746206838897,6.1788,1848.9,1848.8,2.71874]
[1746206841006,3.696,1848.9,1848.8,2.71874]
[1746206842301,3.696,1848.9,1848.8,6.31974]
[1746206843505,3.696,1848.9,1848.8,47.11974]
[1746206847307,3.2078,1849.2,1849.1,1.08122]
[1746206847907,4.8184,1849.2,1849.1,1.08122]
[1746206848208,8.5144,1849.2,1849.1,2.72802]
[1746206849505,5.3066,1849.2,1849.1,2.72802]
[1746206851610,5.3066,1849.2,1849.1,1.08122]
[1746206851811,6.38777,1849.2,1849.1,1.08122]
[1746206852812,9.59557,1849.2,1849.1,1.08122]
[1746206853012,9.59557,1849.2,1849.0,3.595]
[1746206853013,1.08122,1849.1,1849.0,4.67622]
[1746206853212,2.69992,1849.1,1849.0,4.67622]
[1746206853614,1.08128,1849.0,1848.9,1.90771]
[1746206853807,3.52688,1849.0,1848.9,1.90771]
[1746206854116,6.1416,1849.0,1848.9,1.90771]
[1746206854813,5.3147,1849.0,1848.9,3.60621]
[1746206855115,3.696,1849.0,1848.9,3.60621]
[1746206855316,3.2078,1849.2,1849.1,1.08122]
[1746206855813,2.5167,1849.3,1849.2,1.08117]
[1746206856011,3.59781,1849.3,1849.2,1.08117]
[1746206856212,7.29381,1849.3,1849.2,1.08117]
[1746206856612,6.2127,1849.3,1848.9,3.52975]
[1746206856916,1.08128,1849.0,1848.9,1.9077]
[1746206857411,1.08134,1848.9,1848.8,41.88135]
[1746206857609,1.6697,1848.9,1848.8,41.88135]
[1746206858014,2.5121,1848.9,1848.8,41.88135]
[1746206858212,6.2081,1848.9,1848.8,43.58755]
[1746206864519,5.3657,1848.9,1848.8,43.58755]
[1746206865525,3.696,1848.9,1848.8,43.58755]
[1746206875330,5.298,1848.9,1848.8,43.58755]
[1746206875628,6.37934,1848.9,1848.8,41.88135]
[1746206876027,5.298,1848.9,1848.8,41.88135]
[1746206876532,5.298,1848.9,1848.8,43.46385]
[1746206879526,3.696,1848.9,1848.8,43.46385]
[1746206882036,3.696,1848.9,1848.8,46.67165]
[1746206883740,3.56144309,1849.0,1848.9,1.08134]
[1746206883934,3.56144309,1849.0,1848.9,6.35214]
[1746206884137,7.25744309,1849.0,1848.9,6.35214]
[1746206884848,3.696,1849.0,1848.9,6.35214]
[1746206895151,3.696,1849.0,1848.9,1.08134]
[1746206895359,11.9038,1849.0,1848.9,1.08134]
[1746206895755,14.3399,1849.0,1848.9,1.08134]
[1746206896359,9.3399,1849.0,1848.9,1.08134]
[1746206897061,6.1321,1849.0,1848.9,1.08134]
[1746206897251,7.21338,1849.0,1848.9,1.08134]
[1746206897452,10.42118,1849.0,1848.9,1.08134]
[1746206897855,1.08134,1848.9,1848.8,1.08136]
[1746206898055,1.08143,1848.8,1848.7,1.08143]
[1746206898260,5.16473,1848.8,1848.7,1.08143]
[1746206898460,5.16473,1848.8,1848.7,41.88143]
[1746206898865,4.0833,1848.8,1848.7,41.88143]
[1746206899055,7.7793,1848.8,1848.7,41.88143]
[1746206899257,9.479,1848.8,1848.7,41.88143]
[1746206900063,10.5604,1848.8,1848.7,41.88143]
[1746206900471,10.5604,1848.8,1848.7,1.08143]
[1746206904167,9.479,1848.8,1848.7,1.08143]
[1746206904369,10.5604,1848.8,1848.7,1.08143]
[1746206905768,9.479,1848.8,1848.7,1.08143]
[1746206905966,8.6035,1848.8,1848.7,1.08143]
[1746206907368,9.6849,1848.8,1848.7,1.08143]
[1746206907755,1.08146,1848.7,1848.6,41.88146]
[1746206907955,6.09675,1848.7,1848.4,4.67254]
[1746206908162,6.09675,1848.7,1848.5,1.08152]
[1746206908163,4.28937,1848.6,1848.5,1.08152]
[1746206908466,5.97897,1848.6,1848.5,41.88152]
[1746206909166,9.67497,1848.6,1848.5,41.88152]
[1746206909363,8.5934,1848.6,1848.5,41.88152]
[1746206909668,5.3856,1848.6,1848.5,41.88152]
[1746206909869,5.3856,1848.6,1848.5,44.48042]
[1746206910263,3.696,1848.6,1848.5,44.48042]
[1746206913468,3.696,1848.6,1848.5,47.68822]
[1746206915671,3.696,1848.6,1848.5,52.68822]
[1746206916677,5.30854107,1849.0,1848.9,1.08134]
[1746206917065,9.00454107,1849.0,1848.9,4.39354]
[1746206918875,5.4206,1849.0,1848.9,4.39354]
[1746206919869,5.4206,1849.0,1848.9,1.94084]
[1746206920769,3.696,1849.0,1848.9,3.61844]
[1746206921474,3.696,1849.0,1848.9,6.82624]
[1746206933680,0.9928005,1849.0,1848.9,6.82624]
[1746206934686,0.5848005,1849.0,1848.9,6.82624]
[1746206935279,1e-08,1849.0,1848.9,6.82624]
[1746206937387,1.5798,1849.3,1849.2,1.08117]
[1746206937587,1.5798,1849.3,1849.2,4.66617]
[1746206937981,1.5798,1849.3,1849.2,5.54037]
[1746206938280,5.2758,1849.3,1849.2,5.54037]
[1746206942494,3.696,1849.3,1849.2,5.54037]
[1746206942790,3.696,1849.3,1849.2,7.22967]
[1746206943894,3.416,1849.3,1849.2,7.22967]
[1746206944190,3.416,1849.3,1849.2,48.02967]
[1746206945588,3.416,1849.3,1849.2,41.88117]
[1746206945793,3.416,1849.3,1849.2,45.46017]
[1746206945996,6.0571,1849.3,1849.2,45.46017]
[1746206946293,6.0571,1849.3,1849.2,41.88117]
[1746206947993,6.0571,1849.3,1849.2,1.08117]
[1746206953095,3.416,1849.3,1849.2,2.75847]
[1746206953494,3.416,1849.3,1849.2,41.88117]
[1746206953695,3.416,1849.3,1849.2,45.46017]
[1746206954797,3.416,1849.3,1849.2,47.13747]
[1746206957304,0.71297586,1849.3,1849.2,47.13747]
[1746206958715,1.6936,1849.6,1849.5,1.08099]
[1746206958913,1.6936,1849.6,1849.5,4.65999]
[1746206959210,5.3896,1849.6,1849.5,4.65999]
[1746206960612,3.696,1849.6,1849.5,7.86779]
[1746206960804,5.3297,1849.6,1849.5,7.86779]
[1746206961003,5.3297,1849.6,1849.5,4.65999]
[1746206961414,5.3297,1849.6,1849.5,45.45999]
[1746206961607,3.696,1849.6,1849.5,45.45999]
[1746206961806,3.696,1849.6,1849.5,48.66779]
[1746206962006,3.696,1849.6,1849.5,49.10424006]
[1746206962905,3.696,1849.6,1849.5,48.66779]
[1746206963908,6.1997,1849.6,1849.5,45.08879]
[1746206964210,6.1997,1849.6,1849.5,48.66779]
[1746206967610,3.696,1849.6,1849.5,48.66779]
[1746206967917,3.696,1849.6,1849.5,50.29169]
[1746206968813,3.696,1849.6,1849.5,48.66779]
[1746206969217,5.414,1849.6,1849.5,48.66779]
[1746206969514,3.696,1849.6,1849.5,48.66779]
[1746206969717,3.696,1849.6,1849.5,50.29169]
[1746206972113,1.718,1849.8,1849.7,1.08087]
[1746206972417,3.58394107,1849.9,1849.8,1.08081]
[1746206973114,7.27994107,1849.9,1849.8,1.08081]
[1746206973618,3.696,1849.9,1849.8,1.08081]
[1746206974018,5.3883,1849.9,1849.8,1.08081]
[1746206974408,5.3883,1849.9,1849.8,4.65381]
[1746206975614,3.696,1849.9,1849.8,4.65381]
[1746206976918,3.696,1849.9,1849.8,7.86161]
[1746206981115,3.696,1849.9,1849.8,4.65381]
[1746206981315,5.3901,1849.9,1849.8,4.65381]
[1746206986529,5.39469763,1849.9,1849.8,4.65381]
[1746206987916,3.58394107,1850.3,1849.9,2.70178]
[1746206988122,5.37531775,1850.4,1849.9,2.70178]
[1746206988123,2.28691961,1850.6,1850.3,1.08052]